bitfinex/quotes_BTCUSD_20240828
["timestamp","ask_amount","ask_price","bid_price","bid_amount"]
[1724835411195,1.88351058,59419.0,59418.0,0.0008987]
[1724835411403,2.34610642,59419.0,59418.0,0.0008987]
[1724835411608,2.85099642,59419.0,59418.0,0.0008987]
[1724835412414,2.72599258,59419.0,59418.0,0.0018987]
[1724835412842,2.85199642,59419.0,59418.0,0.0008987]
[1724835413187,2.85199642,59419.0,59412.0,0.0008987]
[1724835413188,1.724417,59413.0,59412.0,0.0008987]
[1724835413320,2.64658057,59413.0,59412.0,0.0008987]
[1724835413724,2.65531064,59413.0,59412.0,0.0008987]
[1724835413939,2.68171267,59413.0,59412.0,0.0008987]
[1724835414783,2.69571267,59413.0,59412.0,0.0008987]
[1724835414925,2.85026431,59413.0,59412.0,0.0008987]
[1724835415331,2.86426431,59413.0,59412.0,0.0008987]
[1724835415537,2.86426431,59413.0,59412.0,0.0018987]
[1724835415993,2.89872972,59413.0,59412.0,0.0018987]
[1724835416759,2.71617808,59413.0,59412.0,0.0008987]
[1724835417023,2.72917808,59413.0,59412.0,0.0008987]
[1724835417372,2.71517808,59413.0,59412.0,0.0008987]
[1724835417573,2.72917808,59413.0,59412.0,0.0008987]
[1724835417776,2.71517808,59413.0,59412.0,0.0008987]
[1724835418219,2.72917808,59413.0,59412.0,0.0008987]
[1724835418437,2.87072972,59413.0,59412.0,0.0008987]
[1724835418640,2.88472972,59413.0,59412.0,0.0018987]
[1724835418819,2.89872972,59413.0,59412.0,0.0018987]
[1724835419018,2.89872972,59413.0,59412.0,0.0008987]
[1724835419019,2.88472972,59413.0,59412.0,0.0008987]
[1724835419467,2.89772972,59413.0,59412.0,0.0018987]
[1724835420279,2.07527851,59413.0,59412.0,0.0018987]
[1724835420486,2.0408131,59413.0,59412.0,0.0018987]
[1724835420691,2.0548131,59413.0,59412.0,0.0018987]
[1724835420888,2.0408131,59413.0,59412.0,0.0018987]
[1724835421332,2.0548131,59413.0,59412.0,0.0018987]
[1724835421503,2.0548131,59413.0,59412.0,0.0008987]
[1724835421504,2.19636474,59413.0,59412.0,0.0008987]
[1724835421986,2.20636474,59413.0,59412.0,0.0018987]
[1724835422195,1.7011871,59413.0,59412.0,0.0018987]
[1724835422402,1.7011871,59413.0,59412.0,0.0008987]
[1724835422403,2.0398131,59413.0,59412.0,0.0008987]
[1724835422624,2.0398131,59413.0,59412.0,0.0018987]
[1724835422625,2.0458131,59413.0,59412.0,0.0018987]
[1724835423265,2.0398131,59413.0,59412.0,0.0008987]
[1724835423481,2.20836474,59413.0,59412.0,0.0008987]
[1724835423920,2.19636474,59413.0,59412.0,0.0008987]
[1724835424123,2.20436474,59413.0,59412.0,0.0008987]
[1724835424557,2.20036474,59413.0,59412.0,0.0008987]
[1724835424771,1.7011871,59413.0,59412.0,0.0008987]
[1724835424986,1.2725611,59413.0,59412.0,0.0008987]
[1724835425239,1.1549611,59413.0,59412.0,0.0008987]
[1724835425451,1.4915871,59413.0,59412.0,0.0008987]
[1724835427304,1.6010871,59413.0,59412.0,0.0008987]
[1724835427513,1.76963874,59413.0,59412.0,0.0008987]
[1724835427707,1.85863874,59413.0,59412.0,0.0008987]
[1724835428143,2.19526474,59413.0,59412.0,0.0008987]
[1724835428506,2.48953831,59413.0,59412.0,0.0008987]
[1724835428706,2.51253831,59413.0,59412.0,0.0008987]
[1724835429828,2.84916431,59413.0,59412.0,0.0008987]
[1724835430047,2.51253831,59413.0,59412.0,0.0008987]
[1724835430670,2.84916431,59413.0,59412.0,0.0008987]
[1724835430875,2.51253831,59413.0,59412.0,0.0008987]
[1724835433724,2.84916431,59413.0,59412.0,0.0008987]
[1724835435082,2.84246393,59413.0,59412.0,0.0008987]
[1724835438585,2.50583793,59413.0,59412.0,0.0008987]
[1724835438791,2.33728629,59413.0,59412.0,0.0008987]
[1724835439687,2.67391229,59413.0,59412.0,0.0008987]
[1724835440897,1.82151272,59413.0,59412.0,0.0008987]
[1724835441161,1.82151272,59413.0,59412.0,0.0965987]
[1724835441764,1.82151272,59413.0,59412.0,0.0008987]
[1724835442232,1.99006436,59413.0,59412.0,0.0008987]
[1724835442676,1.82151272,59413.0,59412.0,0.0008987]
[1724835446375,1.48488672,59413.0,59412.0,0.0008987]
[1724835447401,1.48570472,59413.0,59412.0,0.0008987]
[1724835450460,0.5508401,59413.0,59412.0,0.7177467]
[1724835450668,0.5508401,59413.0,59412.0,1.3910107]
[1724835451144,0.000818,59418.0,59417.0,0.84151]
[1724835451363,0.000818,59418.0,59417.0,1.389314]
[1724835451795,0.000818,59418.0,59417.0,1.388314]
[1724835452005,0.000818,59418.0,59417.0,1.387314]
[1724835452646,0.001818,59418.0,59417.0,1.387314]
[1724835453977,0.000818,59418.0,59417.0,1.387314]
[1724835454196,0.001818,59418.0,59417.0,1.390314]
[1724835454417,0.02821086,59418.0,59417.0,1.390314]
[1724835454662,0.02821086,59418.0,59417.0,2.02119157]
[1724835454872,0.02821086,59418.0,59417.0,2.12119157]
[1724835455083,0.02721086,59418.0,59417.0,2.11819157]
[1724835455291,0.02821086,59418.0,59417.0,2.13219157]
[1724835455507,0.02821086,59418.0,59417.0,2.13519157]
[1724835455508,0.02921086,59418.0,59417.0,2.13519157]
[1724835455724,0.02821086,59418.0,59417.0,2.13219157]
[1724835455947,0.02821086,59418.0,59417.0,1.79558757]
[1724835456572,0.02721086,59418.0,59417.0,1.487314]
[1724835456997,0.02821086,59418.0,59417.0,1.501314]
[1724835457238,0.02921086,59418.0,59417.0,1.503314]
[1724835458767,0.002818,59418.0,59417.0,1.503314]
[1724835458979,0.002818,59418.0,59417.0,1.50439699]
[1724835458980,0.0292095,59418.0,59417.0,1.50439699]
[1724835460377,0.0292095,59418.0,59417.0,0.22828299]
[1724835460784,0.1975085,59418.0,59417.0,0.22828299]
[1724835461013,0.0292095,59418.0,59417.0,0.22828299]
[1724835461210,0.03833562,59418.0,59417.0,0.22828299]
[1724835461453,0.03733562,59418.0,59417.0,0.22628299]
[1724835461571,0.03633562,59418.0,59417.0,0.21228299]
[1724835461777,0.03733562,59418.0,59417.0,0.22028299]
[1724835461975,0.03733562,59418.0,59417.0,0.38058499]
[1724835462413,0.03833562,59418.0,59417.0,0.38858499]
[1724835463083,0.03633562,59418.0,59417.0,0.21228299]
[1724835463306,0.03733562,59418.0,59417.0,0.22128299]
[1724835463510,0.03733562,59418.0,59417.0,0.38958499]
[1724835463718,0.03633562,59418.0,59417.0,0.38058499]
[1724835464004,0.03733562,59418.0,59417.0,0.38958499]
[1724835464633,0.03733562,59418.0,59417.0,0.22128299]
[1724835465057,0.03833562,59418.0,59417.0,0.39158499]
[1724835465480,0.03733562,59418.0,59417.0,0.38958499]
[1724835465682,0.03833562,59418.0,59417.0,0.39158499]
[1724835466587,0.20663462,59418.0,59417.0,0.01208299]
[1724835466815,0.03833562,59418.0,59417.0,0.01208299]
[1724835467037,0.20663462,59418.0,59417.0,0.01208299]
[1724835467290,0.03833562,59418.0,59417.0,0.01208299]
[1724835467577,0.20663462,59418.0,59417.0,0.01208299]
[1724835467797,0.03833562,59418.0,59417.0,0.01208299]
[1724835468022,0.20663462,59418.0,59417.0,0.01208299]
[1724835469331,0.03833562,59418.0,59417.0,0.01208299]
[1724835469983,0.03833562,59418.0,59417.0,1.07159299]
[1724835470201,0.03833562,59418.0,59417.0,1.40819699]
[1724835471326,0.03733562,59418.0,59417.0,1.39919699]
[1724835471546,0.03633562,59418.0,59417.0,1.39719699]
[1724835471973,0.03633562,59418.0,59417.0,1.39919699]
[1724835471974,0.03733562,59418.0,59417.0,1.39919699]
[1724835472188,0.03733562,59418.0,59417.0,1.39719699]
[1724835472189,0.03633562,59418.0,59417.0,1.39719699]
[1724835472651,0.03733562,59418.0,59417.0,1.39919699]
[1724835472866,0.03633562,59418.0,59417.0,1.39719699]
[1724835473081,0.03633562,59418.0,59417.0,1.40619699]
[1724835473741,0.03633562,59418.0,59417.0,1.39719699]
[1724835474021,0.03633562,59418.0,59417.0,1.41119699]
[1724835474235,0.03733562,59418.0,59417.0,1.42519697]
[1724835476474,0.01094412,59418.0,59417.0,1.42519697]
[1724835476693,0.03733677,59418.0,59417.0,1.42519697]
[1724835476903,0.02821065,59418.0,59417.0,1.42519697]
[1724835477118,0.03731155,59418.0,59417.0,1.42519697]
[1724835477343,0.03731155,59418.0,59417.0,1.42519696]
[1724835477820,0.02821065,59418.0,59417.0,1.42519696]
[1724835478694,0.02821065,59418.0,59417.0,1.41119696]
[1724835478884,0.02721065,59418.0,59417.0,1.39719696]
[1724835479388,0.02821065,59418.0,59417.0,1.40819696]
[1724835480546,0.02821065,59418.0,59417.0,1.42219696]
[1724835482424,0.001818,59418.0,59417.0,1.42219696]
[1724835483249,0.001818,59418.0,59417.0,1.42309676]
[1724835483879,0.0282101,59418.0,59417.0,1.42309676]
[1724835484304,0.0282101,59418.0,59417.0,1.42309675]
[1724835484523,0.0282101,59418.0,59417.0,1.78270075]
[1724835486703,0.0282101,59418.0,59417.0,1.75970075]
[1724835486932,0.0282101,59418.0,59417.0,1.42309675]
[1724835488189,0.0282101,59418.0,59417.0,1.08649275]
[1724835490481,0.0282101,59418.0,59417.0,0.53688875]
[1724835490716,0.0282101,59418.0,59417.0,0.20028475]
[1724835490717,0.03731687,59418.0,59417.0,0.20028475]
[1724835490929,0.03731687,59418.0,59417.0,0.53688875]
[1724835491345,0.03731687,59418.0,59417.0,0.87349275]
[1724835491559,0.03731687,59418.0,59417.0,0.98879275]
[1724835492012,0.03731687,59418.0,59417.0,1.42109675]
[1724835494190,0.03731687,59418.0,59417.0,1.42109674]
[1724835494621,0.03731687,59418.0,59417.0,1.08449274]
[1724835494838,0.03731687,59418.0,59417.0,0.98879274]
[1724835495987,0.03731687,59418.0,59417.0,1.32539674]
[1724835496406,0.0282101,59418.0,59417.0,0.98879274]
[1724835497301,0.0282101,59418.0,59417.0,1.32539674]
[1724835497937,0.0282101,59418.0,59417.0,0.98879274]
[1724835498155,0.0282101,59418.0,59417.0,1.32539674]
[1724835498404,0.0282101,59418.0,59417.0,0.98879274]
[1724835498870,0.0282101,59418.0,59417.0,1.32539674]
[1724835505366,0.0282101,59418.0,59417.0,1.41329674]
[1724835509688,0.0282101,59418.0,59417.0,0.87349274]
[1724835510182,0.03731474,59418.0,59417.0,0.87349274]
[1724835510370,0.01927274,59418.0,59417.0,0.53688874]
[1724835510614,0.00910464,59418.0,59417.0,0.53688874]
[1724835510833,0.20760464,59418.0,59417.0,0.20028474]
[1724835511051,0.1985,59418.0,59417.0,0.53688874]
[1724835511274,0.20760464,59418.0,59417.0,0.53688874]
[1724835513311,0.20760464,59418.0,59417.0,0.20028474]
[1724835513764,0.20760464,59418.0,59417.0,0.03198274]
[1724835515125,0.20760464,59418.0,59417.0,0.20028474]
[1724835515619,0.20760464,59418.0,59417.0,0.03198274]
[1724835516094,0.71250164,59418.0,59417.0,0.02698274]
[1724835517041,0.71250164,59418.0,59417.0,0.01298274]
[1724835517559,0.71250164,59418.0,59417.0,0.02298274]
[1724835518014,0.71250164,59418.0,59417.0,0.00198274]
[1724835518465,0.71350164,59418.0,59417.0,0.01898274]
[1724835518688,0.71250164,59418.0,59417.0,0.00998274]
[1724835518968,0.71331964,59418.0,59417.0,0.00998274]
[1724835519192,0.71431964,59418.0,59417.0,0.01798274]
[1724835521855,1.05091764,59418.0,59417.0,0.01798274]
[1724835522532,1.38751564,59418.0,59417.0,0.01798274]
[1724835524333,1.38651564,59418.0,59417.0,0.00198274]
[1724835524535,1.48751564,59418.0,59417.0,0.00198274]
[1724835524760,1.51053746,59418.0,59417.0,0.00198274]
[1724835524963,1.78387039,59418.0,59417.0,0.00198274]
[1724835525175,1.78287039,59418.0,59417.0,0.00198274]
[1724835525422,1.79487039,59418.0,59417.0,0.00298274]
[1724835525665,1.79287039,59418.0,59417.0,0.00198274]
[1724835526082,1.79987039,59418.0,59417.0,0.00298274]
[1724835526298,1.79987039,59418.0,59417.0,0.00198274]
[1724835526299,1.78587039,59418.0,59417.0,0.00198274]
[1724835526947,1.78087039,59418.0,59417.0,0.00198274]
[1724835527161,1.84186623,59418.0,59417.0,0.00198274]
[1724835527374,1.84686623,59418.0,59417.0,0.00198274]
[1724835527579,1.78587039,59418.0,59417.0,0.00198274]
[1724835527811,1.78087039,59418.0,59417.0,0.00198274]
[1724835528018,1.78787039,59418.0,59417.0,0.00298274]
[1724835528227,1.78587039,59418.0,59417.0,0.00198274]
[1724835528662,1.79287039,59418.0,59417.0,0.00298274]
[1724835528872,1.78087039,59418.0,59417.0,0.00198274]
[1724835529304,1.78787039,59418.0,59417.0,0.00298274]
[1724835530237,1.78587039,59418.0,59417.0,0.00198274]
[1724835531605,1.79287039,59418.0,59417.0,0.00298274]
[1724835531847,1.79287039,59418.0,59417.0,0.00198274]
[1724835532272,1.79987039,59418.0,59417.0,0.00298274]
[1724835532477,1.78587039,59418.0,59417.0,0.00198274]
[1724835532686,1.49151564,59418.0,59417.0,0.00198274]
[1724835532917,1.49851564,59418.0,59417.0,0.00298274]
[1724835533124,1.49151564,59418.0,59417.0,0.00198274]
[1724835533563,1.49851564,59418.0,59417.0,0.00298274]
[1724835533793,1.49351564,59418.0,59417.0,0.00298274]
[1724835534234,1.49851564,59418.0,59417.0,0.00298274]
[1724835534662,1.48651564,59418.0,59417.0,0.00198274]
[1724835534834,1.49151564,59418.0,59417.0,0.00198274]
[1724835535051,1.49851564,59418.0,59417.0,0.00298274]
[1724835535257,1.49151564,59418.0,59417.0,0.00198274]
[1724835535802,1.49851564,59418.0,59417.0,0.00298274]
[1724835536006,1.49151564,59418.0,59417.0,0.00198274]
[1724835536214,1.49851564,59418.0,59417.0,0.00298274]
[1724835536636,1.49851564,59418.0,59417.0,0.00198274]
[1724835536847,1.49351564,59418.0,59417.0,0.00198274]
[1724835537261,1.49851564,59418.0,59417.0,0.00198274]
[1724835537912,1.50551564,59418.0,59417.0,0.00298274]
[1724835538114,1.62329945,59418.0,59417.0,0.00298274]
[1724835538735,1.60929945,59418.0,59417.0,0.00198274]
[1724835539147,1.61629945,59418.0,59417.0,0.00298274]
[1724835540858,1.78485109,59418.0,59417.0,0.00298274]
[1724835541670,2.12144909,59418.0,59417.0,0.00298274]
[1724835543138,1.95289745,59418.0,59417.0,0.00298274]
[1724835545688,2.45779745,59418.0,59417.0,0.00298274]
[1724835548057,2.12119945,59418.0,59417.0,0.00298274]
[1724835548246,0.69512164,59418.0,59417.0,0.12208274]
[1724835548464,1.03171964,59418.0,59417.0,0.12208274]
[1724835548678,1.36831764,59418.0,59417.0,0.00298274]
[1724835548895,1.79351564,59418.0,59417.0,0.00298274]
[1724835549114,1.91271564,59418.0,59417.0,0.00298274]
[1724835549567,1.90571564,59418.0,59417.0,0.00198274]
[1724835549992,1.90071564,59418.0,59417.0,0.00198274]
[1724835550197,2.19521794,59418.0,59417.0,0.00198274]
[1724835550427,2.19521794,59418.0,59417.0,0.00298274]
[1724835552850,2.20221794,59418.0,59417.0,0.00298274]
[1724835553253,2.20721794,59418.0,59417.0,0.00298274]
[1724835553620,2.20221794,59418.0,59417.0,0.00298274]
[1724835554043,2.20721794,59418.0,59417.0,0.00298274]
[1724835558389,2.64472144,59418.0,59417.0,0.00298274]
[1724835559501,2.76994782,59418.0,59417.0,0.00298274]
[1724835560354,2.64381594,59418.0,59417.0,0.00298274]
[1724835561774,2.66681594,59418.0,59417.0,0.00298274]
[1724835566846,2.6645383,59418.0,59417.0,0.00298274]
[1724835567086,2.66665575,59418.0,59417.0,0.00298274]
[1724835570126,2.48997309,59418.0,59417.0,0.00298274]
[1724835571578,2.53605834,59418.0,59417.0,0.00298274]
[1724835571798,2.48997309,59418.0,59417.0,0.00298274]
[1724835580313,1.514817,59413.0,59412.0,0.0008987]
[1724835580538,2.13753664,59413.0,59412.0,0.0008987]
[1724835580787,1.79202705,59413.0,59412.0,0.0008987]
[1724835581042,1.93624565,59413.0,59412.0,0.1067987]
[1724835581537,1.94124565,59413.0,59412.0,0.0008987]
[1724835581990,1.94724565,59413.0,59412.0,0.0008987]
[1724835584118,0.505024,59403.0,59399.0,0.1103]
[1724835584360,1.46442664,59403.0,59399.0,0.1103]
[1724835584578,1.81004569,59403.0,59399.0,0.1103]
[1724835584802,1.83644759,59403.0,59399.0,0.1103]
[1724835585308,1.83644759,59403.0,59402.0,0.0028998]
[1724835585535,1.83844759,59403.0,59402.0,0.0028998]
[1724835585754,1.83644759,59403.0,59402.0,0.0008998]
[1724835585985,1.84244759,59403.0,59402.0,0.0008998]
[1724835586197,2.17913059,59403.0,59402.0,0.0008998]
[1724835586446,2.49492277,59403.0,59402.0,0.0008998]
[1724835586674,2.49992277,59403.0,59402.0,0.0008998]
[1724835587315,2.49792277,59403.0,59402.0,0.0008998]
[1724835587753,2.49792277,59403.0,59384.0,0.1055]
[1724835587754,2.08639877,59403.0,59384.0,0.1055]
[1724835587997,1.29656664,59385.0,59384.0,0.1055]
[1724835588225,1.81037307,59385.0,59384.0,0.1055]
[1724835588697,1.83678164,59385.0,59384.0,0.1055]
[1724835590815,1.83678164,59385.0,59380.0,0.1105998]
[1724835590816,1.178828,59381.0,59380.0,0.1105998]
[1724835591037,1.80154764,59381.0,59380.0,0.1105998]
[1724835591257,1.81045407,59381.0,59380.0,0.1105998]
[1724835592116,1.89805407,59381.0,59380.0,0.0008998]
[1724835592369,1.89805407,59381.0,59380.0,0.1144998]
[1724835592370,1.91445407,59381.0,59380.0,0.1144998]
[1724835592542,1.91045407,59381.0,59380.0,0.1144998]
[1724835592744,1.91345407,59381.0,59380.0,0.1144998]
[1724835594373,1.91445407,59381.0,59380.0,0.1144998]
[1724835594571,1.91145407,59381.0,59380.0,0.1144998]
[1724835594797,1.91545407,59381.0,59380.0,0.1144998]
[1724835595467,1.79763443,59381.0,59380.0,0.1144998]
[1724835595828,1.57864607,59381.0,59380.0,0.1144998]
[1724835597433,1.57764607,59381.0,59380.0,0.1144998]
[1724835597653,1.57864607,59381.0,59380.0,0.1144998]
[1724835598065,1.47764607,59381.0,59380.0,0.1144998]
[1724835598191,1.47364607,59381.0,59380.0,0.1144998]
[1724835598607,1.47764607,59381.0,59380.0,0.1144998]
[1724835599023,1.47364607,59381.0,59380.0,0.1144998]
[1724835599234,1.47664607,59381.0,59380.0,0.1144998]
[1724835600077,1.47364607,59381.0,59380.0,0.1144998]
[1724835600279,1.58565142,59381.0,59380.0,0.1144998]
[1724835600550,1.47564607,59381.0,59380.0,0.1144998]
[1724835600727,1.47564607,59381.0,59380.0,0.0008998]
[1724835600728,1.81245407,59381.0,59380.0,0.0008998]
[1724835600934,1.81245407,59381.0,59380.0,0.0018998]
[1724835601607,1.69463443,59381.0,59380.0,0.0018998]
[1724835601837,1.81045407,59381.0,59380.0,0.0008998]
[1724835602020,1.35982643,59381.0,59380.0,0.1067998]
[1724835602222,1.35982643,59381.0,59380.0,0.1957998]
[1724835602223,0.80503007,59381.0,59380.0,0.1957998]
[1724835602430,0.68321043,59381.0,59380.0,0.1957998]
[1724835602814,0.52080643,59381.0,59380.0,0.7060188]
[1724835603022,0.51480643,59381.0,59380.0,1.0428318]
[1724835603250,0.51480643,59381.0,59380.0,1.3796448]
[1724835603487,0.51680643,59381.0,59380.0,1.3796448]
[1724835603690,0.51680643,59381.0,59380.0,1.0428318]
[1724835603691,0.51480643,59381.0,59380.0,1.0428318]
[1724835604396,0.51380643,59381.0,59380.0,1.0428318]
[1724835604661,0.51780643,59381.0,59380.0,1.3796448]
[1724835604867,0.01620643,59381.0,59380.0,2.11062922]
[1724835605086,0.000818,59403.0,59398.0,0.004]
[1724835605289,0.168351,59400.0,59396.0,0.004]
[1724835605496,0.84174,59402.0,59397.0,0.003]
[1724835605667,0.673395,59402.0,59397.0,0.168358]
[1724835605901,0.50505,59402.0,59401.0,0.002]
[1724835606049,0.50505,59402.0,59401.0,0.640041]
[1724835606550,0.50505,59402.0,59401.0,1.313429]
[1724835606760,0.50505,59402.0,59401.0,1.650123]
[1724835606928,0.48465,59402.0,59401.0,1.778123]
[1724835607132,0.48465,59402.0,59401.0,1.413429]
[1724835607328,0.000818,59403.0,59402.0,0.168344]
[1724835607534,0.000818,59403.0,59402.0,0.956822]
[1724835607787,0.000818,59403.0,59402.0,1.293511]
[1724835608004,0.000818,59403.0,59402.0,0.956822]
[1724835608261,0.000818,59403.0,59402.0,0.1151]
[1724835608415,0.000818,59403.0,59402.0,0.1131]
[1724835608416,0.169159,59403.0,59402.0,0.1131]
[1724835608592,0.170159,59403.0,59402.0,0.1181]
[1724835608795,0.170159,59403.0,59402.0,0.005]
[1724835608796,0.506842,59403.0,59402.0,0.005]
[1724835609008,0.506842,59403.0,59397.0,0.1043]
[1724835609009,0.841722,59402.0,59401.0,0.002]
[1724835609207,0.336697,59401.0,59397.0,0.1063]
[1724835609405,0.168354,59399.0,59397.0,0.1063]
[1724835609756,0.001818,59403.0,59397.0,0.1063]
[1724835609930,0.000818,59403.0,59400.0,0.168349]
[1724835610130,0.001,59402.0,59401.0,0.002]
[1724835610346,0.001,59402.0,59401.0,0.509041]
[1724835610611,0.000818,59403.0,59402.0,0.168344]
[1724835610612,0.02821662,59403.0,59402.0,0.168344]
[1724835610970,0.02721662,59403.0,59402.0,0.168344]
[1724835611352,0.02721662,59403.0,59402.0,0.167344]
[1724835611769,0.02721662,59403.0,59402.0,0.504033]
[1724835611978,0.02721662,59403.0,59402.0,0.166344]
[1724835612212,0.02821662,59403.0,59402.0,0.172344]
[1724835612657,0.02821662,59403.0,59402.0,0.512033]
[1724835612890,0.02821662,59403.0,59402.0,0.174344]
[1724835613306,0.02821662,59403.0,59402.0,0.177344]
[1724835613513,0.02721662,59403.0,59402.0,0.947722]
[1724835613718,0.02821662,59403.0,59402.0,1.290411]
[1724835613938,0.02821662,59403.0,59402.0,1.293411]
[1724835613939,0.02921662,59403.0,59402.0,1.293411]
[1724835614164,0.02921662,59403.0,59402.0,0.956722]
[1724835614384,0.02821662,59403.0,59402.0,0.950722]
[1724835614592,0.02821662,59403.0,59402.0,0.956722]
[1724835614798,0.02821662,59403.0,59402.0,0.620033]
[1724835614799,0.02921662,59403.0,59402.0,0.620033]
[1724835615104,0.02921662,59403.0,59402.0,0.617033]
[1724835615304,0.02721662,59403.0,59402.0,0.947722]
[1724835615538,0.02821662,59403.0,59402.0,0.951722]
[1724835615744,0.02821662,59403.0,59402.0,0.615033]
[1724835616308,0.02821662,59403.0,59402.0,0.951722]
[1724835616507,0.02921662,59403.0,59402.0,0.957722]
[1724835617144,0.17958646,59444.0,59425.0,3.3635]
[1724835617352,0.17958646,59444.0,59438.0,3.533742]
[1724835617353,0.51358786,59443.0,59438.0,3.533742]
[1724835617556,0.00818,59443.0,59438.0,0.843212]
[1724835617768,0.00818,59443.0,59438.0,1.179697]
[1724835617987,0.00818,59443.0,59438.0,1.516182]
[1724835618404,0.00818,59443.0,59440.0,1.179655]
[1724835618610,0.00818,59443.0,59440.0,2.01426176]
[1724835618814,0.00818,59443.0,59440.0,2.0676214]
[1724835619012,0.00818,59443.0,59440.0,2.0666214]
[1724835619258,0.00818,59443.0,59440.0,1.6281484]
[1724835619433,0.00818,59443.0,59440.0,0.945682]
[1724835619850,0.00918,59441.0,59440.0,0.958682]
[1724835620251,0.00818,59441.0,59440.0,0.945682]
[1724835620453,0.00918,59441.0,59440.0,0.959682]
[1724835620891,0.00918,59441.0,59440.0,0.270736]
[1724835620892,0.00818,59441.0,59440.0,0.270736]
[1724835621099,0.00818,59441.0,59431.0,0.43652]
[1724835621100,0.00818,59441.0,59436.0,0.338495]
[1724835621307,0.00818,59441.0,59436.0,0.002]
[1724835621707,0.00930346,59440.0,59438.0,0.168241]
[1724835621861,0.00930346,59440.0,59437.0,0.168244]
[1724835622068,0.00930346,59440.0,59438.0,0.16824]
[1724835622290,0.00930346,59440.0,59439.0,0.168239]
[1724835622512,0.00930346,59440.0,59436.0,0.015]
[1724835622702,0.00930346,59440.0,59439.0,0.168239]
[1724835622906,0.00818,59441.0,59440.0,0.168236]
[1724835623384,0.00818,59441.0,59440.0,0.953182]
[1724835623603,0.00818,59441.0,59440.0,1.289655]
[1724835624554,0.00818,59441.0,59440.0,1.300655]
[1724835624555,0.00918,59441.0,59440.0,1.300655]
[1724835624932,0.00818,59441.0,59440.0,1.289655]
[1724835625716,0.03555967,59441.0,59440.0,1.303655]
[1724835626365,0.03655967,59441.0,59440.0,1.314655]
[1724835627000,0.03655967,59441.0,59440.0,0.978182]
[1724835627555,0.03655967,59441.0,59440.0,0.531709]
[1724835627788,0.03655967,59441.0,59440.0,0.170236]
[1724835627966,0.04586313,59441.0,59440.0,0.170236]
[1724835628369,0.04586313,59441.0,59440.0,0.025]
[1724835628770,0.04586313,59441.0,59440.0,0.193236]
[1724835629178,0.04586313,59441.0,59440.0,0.025]
[1724835629545,0.55056513,59441.0,59440.0,0.025]
[1724835629736,0.55056513,59441.0,59440.0,0.02572283]
[1724835629737,0.21409713,59441.0,59440.0,0.02572283]
[1724835630299,0.55056513,59441.0,59440.0,0.02572283]
[1724835630897,0.99433313,59441.0,59440.0,0.02572283]
[1724835631942,0.99333313,59441.0,59440.0,0.01472283]
[1724835632456,0.99333313,59441.0,59440.0,0.01572283]
[1724835632615,0.99249141,59441.0,59440.0,0.01572283]
[1724835632818,0.99249141,59441.0,59440.0,0.01472283]
[1724835633038,1.32895941,59441.0,59440.0,0.01472283]
[1724835633236,1.32795941,59441.0,59440.0,0.00072283]
[1724835633618,1.32795941,59441.0,59440.0,0.00472283]
[1724835634219,1.32795941,59441.0,59440.0,0.00072283]
[1724835634456,1.32795941,59441.0,59440.0,0.00372283]
[1724835635123,1.369088,59441.0,59440.0,0.00072283]
[1724835635635,1.369088,59441.0,59440.0,0.00472283]
[1724835635636,1.708556,59441.0,59440.0,0.00472283]
[1724835635828,1.708556,59441.0,59411.0,0.67572486]
[1724835635829,0.0889,59420.0,59411.0,0.67572486]
[1724835636023,0.0889,59420.0,59415.0,0.002]
[1724835636227,0.168299,59418.0,59415.0,0.002]
[1724835636430,0.0889,59420.0,59416.0,0.168303]
[1724835636431,0.257195,59420.0,59416.0,0.168303]
[1724835636556,0.03434827,59419.0,59415.0,0.170306]
[1724835636758,0.03434827,59419.0,59415.0,0.338614]
[1724835636961,0.03434827,59419.0,59415.0,0.002]
[1724835637164,0.20264527,59419.0,59415.0,0.170307]
[1724835637564,0.1683,59418.0,59415.0,0.002]
[1724835637780,0.02639201,59419.0,59415.0,0.170307]
[1724835638141,0.00795626,59418.0,59415.0,0.177307]
[1724835638248,0.00795626,59418.0,59416.0,0.168304]
[1724835638497,0.00795626,59418.0,59415.0,0.009]
[1724835638710,0.00795626,59418.0,59415.0,0.177305]
[1724835638951,0.00795626,59418.0,59415.0,0.009]
[1724835639151,0.00795626,59418.0,59415.0,0.177306]
[1724835639360,0.00795626,59418.0,59416.0,0.168304]
[1724835639635,0.00795626,59418.0,59417.0,0.168302]
[1724835640023,0.00895626,59418.0,59417.0,0.618206]
[1724835640225,0.02639201,59419.0,59418.0,0.841495]
[1724835640607,0.02639201,59419.0,59418.0,0.840495]
[1724835640803,0.02639201,59419.0,59418.0,0.502897]
[1724835641462,0.03434827,59419.0,59418.0,0.504897]
[1724835641661,0.03534827,59419.0,59418.0,0.514897]
[1724835642325,0.03534827,59419.0,59418.0,0.513897]
[1724835642898,0.02839201,59419.0,59418.0,0.522897]
[1724835643097,0.03634827,59419.0,59418.0,0.522897]
[1724835643517,0.03634827,59419.0,59418.0,0.859495]
[1724835643846,0.02839201,59419.0,59418.0,0.859495]
[1724835644164,0.02839201,59419.0,59418.0,1.196093]
[1724835644533,0.02839201,59419.0,59418.0,0.859495]
[1724835645113,0.02839201,59419.0,59418.0,0.019]
[1724835645674,0.03634827,59419.0,59418.0,0.019]
[1724835646974,0.62823627,59419.0,59418.0,0.019]
[1724835647182,1.41362027,59419.0,59418.0,0.019]
[1724835648045,1.41262027,59419.0,59418.0,0.009]
[1724835648408,1.41262027,59419.0,59418.0,0.006]
[1724835648809,1.41262027,59419.0,59418.0,0.008]
[1724835649029,0.73643627,59419.0,59418.0,0.006]
[1724835649425,0.73643627,59419.0,59418.0,0.01]
[1724835649625,0.73543627,59419.0,59418.0,0.004]
[1724835649836,0.62623627,59419.0,59418.0,0.004]
[1724835650045,0.62623627,59419.0,59418.0,0.007]
[1724835650537,0.28964427,59419.0,59418.0,0.004]
[1724835650803,0.28964427,59419.0,59418.0,0.008]
[1724835651061,0.62623627,59419.0,59418.0,0.008]
[1724835651276,0.62623627,59419.0,59418.0,0.004]
[1724835651663,0.168301,59418.0,59416.0,0.0008998]
[1724835651864,0.45794027,59419.0,59416.0,0.0008998]
[1724835651865,0.168302,59417.0,59416.0,0.0008998]
[1724835652092,0.17621092,59417.0,59416.0,0.0008998]
[1724835652523,0.00790892,59417.0,59416.0,0.0008998]
[1724835652735,0.00790892,59417.0,59416.0,0.1692038]
[1724835652885,0.02639201,59419.0,59416.0,0.3375088]
[1724835653088,0.02639201,59419.0,59418.0,0.168299]
[1724835653291,0.02639201,59419.0,59418.0,0.172299]
[1724835653759,0.02639201,59419.0,59416.0,0.0008998]
[1724835653912,0.02639201,59419.0,59417.0,0.1683]